Cogmind - Beta 16 @@@ ROGUE MODE // 2025.11.04 @ 01:19:28 Player: KeKe Result: Destroyed by ZH-3F8(R) with Subdweller Shrapnel Launcher Performance ------------- Evolutions (0) 0 Regions Visited (2) 400 Robots Destroyed (26) 130 Value Destroyed (750) 750 Prototype IDs (0) 0 Alien Tech Used (0) 0 Bonus (0) 0 TOTAL SCORE: 1280 Bonus ------- None Cogmind --------- Core Integrity 0/250 Matter 221/300 Energy 100/100 System Corruption 2% Temperature Cool (0) Movement Walking (190) Ox1 Location -10/Subcaves Parts ------- > --- POWER (1) -------- (None) > --- PROPULSION (2) --- Aluminum Leg Aluminum Leg > --- UTILITY (2) ------ Large Storage Unit > --- WEAPON (2) ------- Grenade Launcher Mining Laser > --- INVENTORY (15) --- Visual Processing Unit Hacking Suite Assault Rifle Light Assault Rifle Light Assault Rifle Datajack Peak State ------------ > --- POWER ------------ Light Nuclear Core > --- PROPULSION ------- Light Treads Light Treads > --- UTILITY ---------- Small Storage Unit Targeting Computer > --- WEAPON ----------- Assault Rifle Light Assault Rifle > --- INVENTORY -------- Light Ion Engine Compact Wheel Compact Wheel Heat Sink Visual Processing Unit Light Assault Rifle Light Assault Rifle Mining Laser [Rating: 9] Favorites ----------- Power Light Ion Engine Engine Light Ion Engine Power Core Light Nuclear Core Propulsion Aluminum Leg Treads Light Treads Leg Aluminum Leg Wheel Compact Wheel Utility Large Storage Unit Device Heat Sink Storage Large Storage Unit Processor Targeting Computer Weapon Assault Rifle Energy Gun Medium Laser Ballistic Gun Assault Rifle Launcher Grenade Launcher Special Weapon Mining Laser Build | -11 -10 -10 ------- Run | Yrd Mat Sub Slots Evolved . | . . . Power . | . . . Propulsion . | . . . Utility . | . . . Weapon . | . . . Parts Attached 17 | . 14 3 Power 2 | . 2 . Engine 1 | . 1 . Core 1 | . 1 . Reactor . | . . . Propulsion 6 | . 5 1 Treads 2 | . 2 . Leg 3 | . 2 1 Wheel 1 | . 1 . Hover . | . . . Flight . | . . . Utility 3 | . 3 . Device 1 | . 1 . Storage 1 | . 1 . Processor 1 | . 1 . Hackware . | . . . Protection . | . . . Artifact . | . . . Weapon 6 | . 4 2 Energy Gun 1 | . 1 . Energy Cannon . | . . . Ballistic Gun 3 | . 3 . Ballistic Cannon . | . . . Launcher 1 | . . 1 Special Weapon 1 | . . 1 Impact Weapon . | . . . Slashing Weapon . | . . . Piercing Weapon . | . . . Special Melee Weapon . | . . . Unidentified Prototypes . | . . . Parts Lost 7 | . 3 4 Power 1 | . . 1 Propulsion 3 | . 2 1 Utility 1 | . . 1 Weapon 2 | . 1 1 Highest Loss Streak 3 | . 2 3 To Critical Strikes . | . . . Average Backups 7 | 6 6 7 Power . | 1 . . Propulsion 1 | 4 1 . Utility 1 | . 1 2 Weapon 2 | 1 2 3 Tool/Special . | . . . Unused Backups 11 | . 6 5 Power 2 | . 2 . Propulsion . | . . . Utility 4 | . 2 2 Weapon 4 | . 2 2 Tool/Special 1 | . . 1 Average Slot Usage (%) 86 | . 97 77 Engine 11 | . 8 13 Core 2 | . 5 . Treads 7 | . 15 . Leg 13 | . 9 17 Wheel 1 | . 2 . Device 1 | . 2 . Storage 14 | . 14 14 Processor 6 | . 10 2 Energy Gun 2 | . 6 . Ballistic Gun 18 | . 21 15 Launcher 5 | . . 11 Peak Build Rating 9 | 6 9 8 Average Rating 7 | 6 7 6 On Entrance 6 | 6 6 8 Avg Prop Armor Cover (%) 13 | . 13 . Naked Turns . | . . . Heaviest Build 28 | 13 26 28 Greatest Support 40 | 20 40 20 Greatest Overweight (x) 4 | . 4 2 Average Overweight (x) . | . . 1 Largest Inventory Capacity 15 | 8 15 15 Average Capacity 12 | 8 9 15 Most Carried 8 | 6 8 8 Average Carried 7 | 6 6 7 Final Capacity 15 | 8 15 15 Final Carried 8 | 6 8 6 Class Distribution -------------------- 100% | Mutant Dominant Class ---------------- Mutant | -10/Materials Mutant | -10/Subcaves Resources | -11 -10 -10 ----------- Run | Yrd Mat Sub Matter Collected 776 | 200 355 221 Remotely . | . . . Salvage Created 824 | . 781 43 Parts 54 | . 50 4 Haulers Intercepted 1 | . 1 . Recyclers Shooed . | . . . Parts Field Recycled . | . . . Retrieved Matter . | . . . Parts Self-Destructed 2 | . . 2 Prevented . | . . . Parts Restored . | . . . Kills | -11 -10 -10 ------- Run | Yrd Mat Sub Combat Hostiles Destroyed 21 | . 17 4 Guns 17 | . 17 . AOE 4 | . . 4 Classes Destroyed 7 | . 6 1 Worker 1 | . 1 . Hauler 1 | . 1 . Operator 1 | . 1 . Watcher 2 | . 2 . Swarmer 3 | . 3 . Grunt 15 | . 14 1 Subdweller 3 | . . 3 Best Kill Streak 5 | . 5 2 Combat Bots Only 4 | . 4 2 Max Kills in Single Turn 2 | . 2 1 Gunslinging . | . . . Exploded 1 | . . 1 Melee . | . . . Uniques/NPCs Destroyed . | . . . Combat | -11 -10 -10 -------- Run | Yrd Mat Sub Hostile Shots Fired 121 | . 97 24 Missed 33 | . 27 6 Hits 88 | . 70 18 Projectile 88 | . 70 18 AOE 2 | . . 2 Critical Strikes 1 | . 1 . Damage Taken 1333 | . 852 481 Core 275 | . 180 95 Absorbed by Shields . | . . . Core Remaining (%) 100 | 100 . . Volleys Fired 98 | . 78 20 Largest 2 | . 2 2 Hottest 100 | . 70 100 Shots Fired 178 | . 156 22 Gun 159 | . 156 3 Cannon . | . . . Launcher 16 | . . 16 Special 3 | . . 3 Kinetic 134 | . 131 3 Thermal 28 | . 25 3 Explosive 16 | . . 16 Electromagnetic . | . . . Robot Hit Streak 24 | . 24 4 Robot Miss Streak 3 | . 3 2 Penetration Max . | . . . Secondary Targets 4 | . 4 . Max Gunslinging Chain 1 | . 1 . Shots Hit Robots 113 | . 105 8 Core Hits 59 | . 46 13 Critical Kills . | . . . Critical Parts Destroyed . | . . . Critical Strikes 2 | . 2 . Burn 2 | . 2 . Melee Attacks . | . . . Impact . | . . . Slashing . | . . . Piercing . | . . . Sneak Attacks . | . . . Combat Hostiles . | . . . Follow-up Attacks . | . . . Damage Inflicted 1777 | . 1195 582 Guns 1205 | . 1195 10 Cannons . | . . . Explosions 572 | . . 572 Melee . | . . . Ramming . | . . . Kinetic 991 | . 981 10 Thermal 214 | . 214 . Explosive 572 | . . 572 Electromagnetic . | . . . Impact . | . . . Slashing . | . . . Piercing . | . . . Highest Corruption 2 | . 2 2 Average Corruption 2 | . 2 2 Corruption Purged . | . . . Corruption Blocked . | . . . Effects 19 | . 1 18 Message Errors 4 | . . 4 Matter Fused 9 | . 1 8 Heat Flow Errors 1 | . . 1 Energy Discharges 2 | . . 2 Data Loss (major) 1 | . . 1 Misfires 1 | . . 1 Alerts 1 | . . 1 Overload Shots . | . . . Overflow Damage . | . . . Projectiles . | . . . Explosions . | . . . Melee . | . . . Knockbacks . | . . . Impact . | . . . Kinetic . | . . . Secondary . | . . . Self-Inflicted Damage . | . . . Shots . | . . . Rammed . | . . . Targets Rammed . | . . . Kicked . | . . . Crushed . | . . . Highest Temperature 215 | . 123 215 Average Temperature 28 | . 25 116 Received Heat Transfer 561 | . 432 129 Siege Activations . | . . . Martial Activations . | . . . Shielding Activations . | . . . Robots Disrupted . | . . . Combat Hostiles . | . . . Robots Corrupted . | . . . Combat Hostiles . | . . . Parts Fried . | . . . Impact Corruptions . | . . . Robots Melted . | . . . Combat Hostiles . | . . . Parts Melted 3 | . 3 . Heat Transferred 777 | . 777 . Parts Sabotaged . | . . . Parts Stolen . | . . . Parts Stripped . | . . . Power Chain Reactions . | . . . Alert | -11 -10 -10 ------- Run | Yrd Mat Sub Maximum Alert Level . | . . . Low Security (%) 100 | 100 100 . Level 1 . | . . . Level 2 . | . . . Level 3 . | . . . Level 4 . | . . . Level 5 . | . . . High Security . | . . . Max Security . | . . . Peak Influence 133 | . 133 . Initial . | . . . Average 73 | . 74 . Influence Increases 537 | . 517 20 Destroy 0b10 Robot/C 360 | . 340 20 Destroy 0b10 Robot/NC 25 | . 25 . Destroy Leader 76 | . 76 . Select Force Hacks 60 | . 60 . Destroy Structure 1 | . 1 . Lose Combat Pursuer 15 | . 15 . Influence Decreases 537 | . 474 63 Entered New Map 22 | . . 22 Time Decay 475 | . 444 31 Lost Part 40 | . 30 10 Squads Dispatched 4 | . 4 . Investigation 3 | . 3 . Extermination . | . . . Reinforcement 1 | . 1 . Assault . | . . . Garrison . | . . . Intercept . | . . . Searches Triggered . | . . . Construction Impeded . | . . . Haulers Reinforced . | . . . Active Scanning Responses . | . . . Cargo Convoy Interrupts . | . . . Stealth | -11 -10 -10 --------- Run | Yrd Mat Sub Distress Signals 1 | . 1 . Communications Jammed . | . . . Distress Signals . | . . . Times Spotted 33 | . 25 8 Peak Tracking Total 5 | . 5 3 Tactical Retreats 1 | . 1 . Traps | -11 -10 -10 ------- Run | Yrd Mat Sub Traps Triggered 3 | . 3 . Indirectly . | . . . Trap Hack Attempts . | . . . Triggered . | . . . Disarmed . | . . . Reprogrammed . | . . . Reused . | . . . Traps Extracted . | . . . Installed . | . . . Triggered . | . . . Machines | -11 -10 -10 ---------- Run | Yrd Mat Sub Machines Disabled . | . . . Max in Single Turn . | . . . Machines Repaired . | . . . Machines Dismantled . | . . . Machines Sabotaged . | . . . Overloaded Fab Kills . | . . . Hacking | -11 -10 -10 --------- Run | Yrd Mat Sub Machines Accessed 3 | . 3 . Terminals . | . . . Fabricators . | . . . Repair Stations 1 | . 1 . Recycling Units 2 | . 2 . Scanalyzers . | . . . Garrison Access . | . . . Total Hacks 6 | . 6 . Successful 3 | . 3 . Failed 3 | . 3 . Catastrophic . | . . . Database Lockouts . | . . . Manual 4 | . 4 . Terminals . | . . . Fabricators . | . . . Repair Stations 2 | . 2 . Recycling Units 4 | . 4 . Scanalyzers . | . . . Garrison Access . | . . . Terminal Hacks . | . . . Fabricator Hacks . | . . . Repair Station Hacks 1 | . 1 . Scan Component 1 | . 1 . Recycling Unit Hacks . | . . . Scanalyzer . | . . . Garrison Access Hacks . | . . . Unauthorized Hacks 2 | . 2 . Terminals . | . . . Fabricators . | . . . Repair Stations . | . . . Recycling Units 2 | . 2 . Tunnel 2 | . 2 . Scanalyzers . | . . . Garrison Access . | . . . Data Cores Recovered . | . . . Used . | . . . Hacking Detections 2 | . 2 . Full Trace Events . | . . . Feedback Events . | . . . Feedback Blocked . | . . . Robot Schematics Acquired . | . . . Robots Built . | . . . Authchips . | . . . Time . | . . . Total Robot Build Rating . | . . . Part Schematics Acquired . | . . . Parts Built . | . . . Authchips . | . . . Time . | . . . Total Part Build Rating . | . . . Part Studies Acquired . | . . . Parts Repaired . | . . . Time . | . . . Parts Recycled . | . . . Recycled Matter . | . . . Retrieved Matter . | . . . Retrieved Components . | . . . Parts Scanalyzed . | . . . Part Schematics Acquired . | . . . Parts Damaged . | . . . Bothacking | -11 -10 -10 ------------ Run | Yrd Mat Sub Used RIF Installer . | . . . Robots Hacked . | . . . Non-combat . | . . . Combat . | . . . Robot Hacks Applied . | . . . Relay Couplers Released . | . . . Fabnet Peak Effective % . | . . . Robots Rewired . | . . . Allies Hacked . | . . . Hacks Repelled . | . . . Allies | -11 -10 -10 -------- Run | Yrd Mat Sub Total Allies . | . . . Largest Group . | . . . Highest-Rated Group . | . . . Highest-Rated Ally . | . . . Total Orders . | . . . Ally Attacks . | . . . Total Damage . | . . . Kills . | . . . Allies Corrupted . | . . . Allies Melted . | . . . Intel | -11 -10 -10 ------- Run | Yrd Mat Sub Active Infowar (turns) . | . . . Robot Analysis Total . | . . . Derelict Logs Recovered . | . . . Drone Launches . | . . . Drone Recoveries . | . . . Exploration | -11 -10 -10 ------------- Run | Yrd Mat Sub Turns Passed 2489 | 8 1161 1320 Spaces Moved 1144 | 7 607 530 Core 9 | . 9 . Treads 219 | . 219 . Legs 772 | 7 235 530 Wheels 144 | . 144 . Hover . | . . . Flight . | . . . Fastest Speed 100 | 120 100 190 Average Speed 187 | 120 142 239 Slowest Speed 260 | 120 250 260 Overloaded Moves . | . . . Propulsion Burnouts . | . . . Robots Hopped . | . . . Potential Cave-ins . | . . . Cave-ins Triggered . | . . . Exploration Rate (%) 47 | 2 97 42 Regions Visited 2 Branch Regions 1 Pre-discovered Areas 2 | . 2 . Known Exits Taken . | . . . Unknown Exits Taken 2 | 1 1 . Scrap Searched . | . . . Spaces Dug . | . . . Terrain Destroyed 60 | . . 60 Melee . | . . . Projectile . | . . . AOE 60 | . . 60 Terrain Rammed . | . . . Walls Destroyed . | . . . Machines Disabled . | . . . Actions | -11 -10 -10 --------- Run | Yrd Mat Sub Total 1320 | 6 759 555 Wait 39 | . 37 2 Move 1142 | 6 606 530 Hop . | . . . Pick Up 12 | . 12 . Fast Attach 3 | . 3 . Attach 9 | . 7 2 Detach . | . . . Swap 6 | . 5 1 Drop 11 | . 11 . Fire 98 | . 78 20 Melee . | . . . Ram . | . . . Kick . | . . . Crush . | . . . Escape Stasis . | . . . Rewire . | . . . Trap . | . . . Miscellaneous . | . . . Route ------- -11/Scrapyard -10/Materials (discovered 4 exits: [*Mat x2] / [*Min] / [*Sub]) -10/Subcaves (discovered 1 exit: [*Mat]) History --------- Turn | Location | Event 1 | -11/Scrapyard | Discovered new exit (range 3) 9 | -11/Scrapyard | Entered Materials 256 | -10/Materials | Discovered new exit (range 4) 316 | -10/Materials | Build established: Mutant 561 | -10/Materials | Core integrity fell below 50% 620 | -10/Materials | Discovered new exit (range 12) 796 | -10/Materials | Discovered new exit (range 10) 1155 | -10/Materials | Discovered new exit (range 10) 1170 | -10/Materials | Entered Subcaves 1294 | -10/Subcaves | Discovered new exit (range 12) 1457 | -10/Subcaves | Core integrity fell below 20% 1492 | -10/Subcaves | Lost 3 parts (1n1u1w) 2490 | -10/Subcaves | Destroyed by ZH-3F8(R) with Subdweller Shrapnel Launcher Last Messages --------------- 01902_ Acquired 43 matter. 01903_ System corrupted: Matter fused (-10). 01905_ Subatomizers dissect the Ion Engine. 01913_ Acquired 5 matter. 01915_ Acquired 13 matter. 01976_ System corrupted: Energy discharge (-27). 01991_ Acquired 11 matter. 01999_ Acquired 10 matter. 02010_ System corrupted: Matter fused (-7). 02212_ Acquired 14 matter. 02216_ P6S2M&>RR2YB91 JROQUHV7T16YEZZDK 02231_ System corrupted: Matter fused (-5). 02255_ 4F-8DO(u) deconstructs Twisted Machinery. 02262_ HASHMH7PYGER XTD& JPH 02262_ 4F-8DO(u) deconstructs Twisted Machinery. 02277_ ZB&SAPLRSBB7NCZZRTE&>E 02326_ System corrupted: IFF burst signal emitted. 02405_ System corrupted: Matter fused (-7). 02462_ System corrupted: Substantial component data lost. 02488_ Lgt. Ion Engine destroyed. Map ----- +----------------------------------------------------+ | ???????????????????????????# #?????????????? | | ??????????????????????????## #?????????????? | | ??????????????????????????# ##?????????????? | | ??????????????????????????## ##??????????????? | | ??????????????????????????# " #??????????????? | | ??????????????????????????# " ##??????????????? | | ??????????????????????????## "#???????????????? | | ??????????????????????????# ##??????????????? | | ??????????????????????????## #??????????????? | | ??????????????????????????# #??????????????? | | ????????????????##????????# ###??????????????? | | ??????????????### #?##???## ##????????????????? | | ?????????????? ## ???# ##????????????????? | | ??????????????? ???# #????????????????? | | ??????????????? #??## #????????????????? | | ?????????????? #### ##???????????????? | | ????????????????????# #???????????????? | | ????????????????????# ##??????????????? | | ????????????????????# ##?????????????? | | ????????????????????## #?????????????? | | ????????????????????## ## ##?????????????? | | ????????????????????#; ;;###??????????????? | | ?????????????????????# ;##???????????????? | | ?????????????????????#; ##??????????????? | | ?????????????????????#; #??????????????? | | ?????????????????????#; @ #??????????????? | | ?????????????? ;; ;; #?????????????? | | ?????????? ;## #?????????????? | | ??????????? ;#?###?????????????? | | ??????????? R ;#?????????????????? | | ???????????? R ####?????????????????? | | ???????????? #????????????????????? | | ????????????"#### ##????????????????????? | | ????????????????## ??????????????????????? | | ?????????????????# ??????????????????????? | | ?????????????????# ??????????????????????? | | ????????????????? ??????????????????????? | | ???????????????? ## ??????????????????????? | | ???????????????????# ??????????????????????? | | ????????????????????? ??????????????????????? | | ??????????????????????????????????????????????? | | ??????????????????????????????????????????????? | | ??????????????????????????????????????????????? | | ??????????????????????????????????????????????? | | ??????????????????????????????????????????????? | | ??????????????????????????????????????????????? | | ??????????????????????????????????????????????? | | ??????????????????????????????????????????????? | | ??????????????????????????????????????????????? | | ??????????????????????????????????????????????? | +----------------------------------------------------+ Best States ------------- Heat Dissipation 35 Energy Generation 14 Energy Capacity 250 Matter Stores 300 Matter Capacity 300 Sight Range 16 Terrain Scan Density 10 Evasion (%) 55 Targeting Accuracy 5 Recoil Reduction 2 Item Schematics ----------------- None Robot Schematics ------------------ None Fabricated ------------ Nothing Repaired ---------- Nothing Studied --------- None Alien Tech Used ----------------- None Achievements -------------- None Challenges ------------ None Game ------ Seed MiniElectrostormGun Manual? 0 Play Time 00:15:41 Cumulative 141.3 hours Start 2025.11.04 @ 01:05:41 End 2025.11.04 @ 01:19:28 Sessions 1 Manual Loads 0 Difficulty Rogue Special Mode None Game No. 140 Rogue 140 Adventurer 0 Explorer 0 Win Type - Total 1 Types 1/0/0/0/0/0/0/0/0/0 Lore% 65 Gallery% 54 Achievement% 40 Wizard Run 0 Options --------- Layout 0 ASCII 0 Keyboard 0 Movement Mouse Keybinds 0 Fullscreen 2 Font 18/X11 Map View 76x50 Zoom Use 0% Tactical HUD 1 Map Filters NONE Filters NONE Steam 1 RUN: 54311fd2-833f-41ef-b1c3-9171f67d0697